[Event "Romanian-ch Youth Girls U14 2024"]
[Site "Eforie Nord"]
[Date "2024.04.15"]
[Round "5.1"]
[White "Semenova, Vasylyna"]
[Black "Aldea, Maria-Antonia"]
[Result "1/2-1/2"]
[ECO "A03"]
[WhiteElo "1827"]
[BlackElo "1894"]
[Annotator "NA RC"]
[PlyCount "139"]
[EventDate "2024.04.10"]
[EventType "swiss"]
[EventCountry "ROU"]
[SourceTitle "playchess.com"]
[Source "ChessBase"]
[SourceQuality "1"]
[TimeControl "5400+30"]

1. f4 {[%emt 0:00:02]} d5 {[%emt 0:00:31]} 2. Nf3 {[%emt 0:00:06]} g6 {[%emt 0:02:06]} 3. g3 {[%emt 0:00:23]} Bg7 {[%emt 0:00:14]} 4. Bg2 {[%emt 0:00:18]} Nh6 {[%emt 0:02:57]} 5. d3 {[%emt 0:00:47]} d4 {[%emt 0:02:39]} 6. a4 {[%emt 0:00:21]} O-O {[%emt 0:02:18]} 7. Na3 {[%emt 0:00:19]} c6 {[%emt 0:02:09]} 8. O-O {[%emt 0:02:07]} Be6 {[%emt 0:01:14]} 9. Qe1 {[%emt 0:05:01]} Na6 {[%emt 0:04:07]} 10. b3 {[%emt 0:09:48]} Rb8 {[%emt 0:06:44]} 11. Bb2 {[%emt 0:00:35]} Nf5 {[%emt 0:01:36]} 12. Bc1 {[%emt 0:08:46]} Nc7 {[%emt 0:10:51]} 13. Bd2 {[%emt 0:10:40]} h6 {[%emt 0:08:44]} 14. Rb1 {[%emt 0:00:32]} Nd5 {[%emt 0:02:57]} 15. Nc4 {[%emt 0:02:40]} Nfe3 {[%emt 0:07:52]} 16. Bxe3 {[%emt 0:04:41]} dxe3 {[%emt 0:01:13]} 17. Nce5 {[%emt 0:01:14]} Qb6 {[%emt 0:07:36]} 18. a5 {[%emt 0:03:54]} Qb4 {[%emt 0:04:02]} 19. Qxb4 {[%emt 0:01:25]} Nxb4 {[%emt 0:00:01]} 20. c3 {[%emt 0:00:27]} Nd5 {[%emt 0:03:31]} 21. Rfc1 {[%emt 0:00:31]} c5 {[%emt 0:07:13]} 22. b4 {[%emt 0:00:59]} cxb4 {[%emt 0:01:08]} 23. cxb4 {[%emt 0:01:06]} Rbc8 {[%emt 0:01:51]} 24. Bf1 {[%emt 0:11:36]} Rxc1 {[%emt 0:07:07]} 25. Rxc1 {[%emt 0:00:09]} Rc8 {[%emt 0:00:02]} 26. Rxc8+ {[%emt 0:00:31]} Bxc8 {[%emt 0:00:01]} 27. b5 {[%emt 0:01:13]} Nc3 {[%emt 0:01:13]} 28. b6 {[%emt 0:02:04]} axb6 {[%emt 0:01:39]} 29. axb6 {[%emt 0:00:05]} Nd5 {[%emt 0:02:12]} 30. Nc4 {[%emt 0:00:36]} Bc3 {[%emt 0:01:24]} 31. Bg2 {[%emt 0:00:39]} Be6 {[%emt 0:03:06]} 32. Nfe5 {[%emt 0:00:46]} Bd4 {[%emt 0:04:06]} 33. Kf1 {[%emt 0:06:45]} Kf8 {[%emt 0:01:18]} 34. Na3 {[%emt 0:10:44]} Ke8 {[%emt 0:01:11]} 35. Nec4 {[%emt 0:02:39]} Nxb6 {[%emt 0:00:29]} 36. Nxb6 {[%emt 0:00:30]} Bxb6 {[%emt 0:00:01]} 37. Bxb7 {[%emt 0:00:17]} Bb3 {[%emt 0:00:56]} 38. Nc4 {[%emt 0:00:49]} Bxc4 {[%emt 0:00:36]} 39. dxc4 {[%emt 0:00:05]} Kd7 {[%emt 0:00:26]} 40. Kg2 {[%emt 0:00:25]} Kd6 {[%emt 0:00:25]} 41. Be4 {[%emt 0:00:10]} Bd4 {[%emt 0:00:19]} 42. Kf3 {[%emt 0:00:07]} Kc5 {[%emt 0:00:37]} 43. Bd3 {[%emt 0:00:26]} e6 {[%emt 0:00:41]} 44. g4 {[%emt 0:00:35]} f5 {[%emt 0:00:33]} 45. h3 {[%emt 0:01:49]} Kd6 {[%emt 0:00:21]} 46. gxf5 {[%emt 0:00:41]} exf5 {[%emt 0:00:03]} 47. h4 {[%emt 0:00:11]} h5 {[%emt 0:00:12]} 48. Bc2 {[%emt 0:00:11]} Ke7 {[%emt 0:00:30]} 49. Ba4 {[%emt 0:00:08]} Kf8 {[%emt 0:00:37]} 50. Kg2 {[%emt 0:00:11]} Ke7 {[%emt 0:00:08]} 51. Kf1 {[%emt 0:00:31]} Bf6 {[%emt 0:00:17]} 52. Kg2 {[%emt 0:01:04]} Bxh4 {[%emt 0:00:27]} 53. c5 {[%emt 0:00:16]} Bf6 {[%emt 0:02:29]} 54. c6 {[%emt 0:00:22]} Kd6 {[%emt 0:00:00]} 55. c7 {[%emt 0:00:20]} Kxc7 {[%emt 0:00:00]} 56. Be8 {[%emt 0:00:13]} g5 {[%emt 0:00:00]} 57. fxg5 {[%emt 0:00:05]} Bxg5 {[%emt 0:00:00]} 58. Bxh5 {[%emt 0:00:05]} Kd6 {[%emt 0:00:05]} 59. Bf3 {[%emt 0:00:06]} Ke5 {[%emt 0:00:26]} 60. Kg3 {[%emt 0:00:08]} f4+ {[%emt 0:00:18]} 61. Kg4 {[%emt 0:00:30]} Bd8 {[%emt 0:00:12]} 62. Kh5 {[%emt 0:00:56]} Ba5 {[%emt 0:00:13]} 63. Kg5 {[%emt 0:00:11]} Be1 {[%emt 0:00:03]} 64. Kg6 {[%emt 0:00:11]} Bg3 {[%emt 0:00:11]} 65. Kg5 {[%emt 0:00:11]} Kd4 {[%emt 0:00:04]} 66. Kf5 {[%emt 0:00:13]} Kc3 {[%emt 0:00:06]} 67. Ke4 {[%emt 0:00:07]} Kd2 {[%emt 0:00:06]} 68. Kd4 {[%emt 0:00:05]} Ke1 {[%emt 0:00:15]} 69. Ke4 {[%emt 0:00:04]} Kf2 {[%emt 0:00:06]} 70. Kd5 {[%emt 0:00:04]} 1/2-1/2

[Event "Romanian-ch Youth Girls U14 2024"]
[Site "Eforie Nord"]
[Date "2024.04.15"]
[Round "5.2"]
[White "Panici, Karla Marina"]
[Black "Nitu, Maria Roxana"]
[Result "1-0"]
[ECO "B71"]
[WhiteElo "1684"]
[BlackElo "1631"]
[Annotator "NA RC"]
[PlyCount "133"]
[EventDate "2024.04.10"]
[EventType "swiss"]
[EventCountry "ROU"]
[SourceTitle "playchess.com"]
[Source "ChessBase"]
[SourceQuality "1"]
[TimeControl "5400+30"]

1. e4 {[%emt 0:01:46]} c5 {[%emt 0:00:09]} 2. Nf3 {[%emt 0:00:34]} d6 {[%emt 0:00:22]} 3. d4 {[%emt 0:00:30]} cxd4 {[%emt 0:00:10]} 4. Nxd4 {[%emt 0:00:09]} Nf6 {[%emt 0:00:20]} 5. Nc3 {[%emt 0:00:41]} g6 {[%emt 0:00:14]} 6. f4 {[%emt 0:01:26]} Bg7 {[%emt 0:00:49]} 7. e5 {[%emt 0:03:06]} Nh5 {[%emt 0:02:50]} 8. Bb5+ {[%emt 0:16:48]} Bd7 {[%emt 0:04:04]} 9. e6 {[%emt 0:05:39]} fxe6 {[%emt 0:01:26]} 10. Nxe6 {[%emt 0:04:03]} Qc8 {[%emt 0:00:44]} 11. Nxg7+ {[%emt 0:00:50]} Nxg7 {[%emt 0:00:57]} 12. Be2 {[%emt 0:09:09]} O-O {[%emt 0:19:30]} 13. O-O {[%emt 0:05:09]} Nc6 {[%emt 0:20:04]} 14. a3 {[%emt 0:04:41]} Be6 {[%emt 0:11:28]} 15. Nd5 {[%emt 0:11:10]} Qd7 {[%emt 0:21:18]} 16. b3 {[%emt 0:10:57]} Rf5 {[%emt 0:03:42]} 17. Ne3 {[%emt 0:01:59]} Rf7 {[%emt 0:01:49]} 18. Ng4 {[%emt 0:04:35]} Bxg4 {[%emt 0:08:32]} 19. Bxg4 {[%emt 0:00:28]} Nf5 {[%emt 0:00:52]} 20. Bb2 {[%emt 0:01:50]} h5 {[%emt 0:00:30]} 21. Bxf5 {[%emt 0:01:47]} Qxf5 {[%emt 0:00:28]} 22. Qd2 {[%emt 0:01:18]} Raf8 {[%emt 0:00:35]} 23. Rad1 {[%emt 0:02:15]} e5 {[%emt 0:00:30]} 24. Qxd6 {[%emt 0:00:30]} Qxc2 {[%emt 0:00:30]} 25. Bxe5 {[%emt 0:00:30]} Nxe5 {[%emt 0:00:30]} 26. fxe5 {[%emt 0:00:30]} Rxf1+ {[%emt 0:00:30]} 27. Rxf1 {[%emt 0:00:30]} Rxf1+ {[%emt 0:00:30]} 28. Kxf1 {[%emt 0:00:30]} Qf5+ {[%emt 0:00:30]} 29. Ke2 {[%emt 0:00:30]} Qe4+ {[%emt 0:00:30]} 30. Kd1 {[%emt 0:00:30]} Qb1+ {[%emt 0:00:30]} 31. Kd2 {[%emt 0:00:30]} Qb2+ {[%emt 0:00:30]} 32. Ke1 {[%emt 0:00:30]} Qc1+ {[%emt 0:00:30]} 33. Ke2 {[%emt 0:00:30]} Qc2+ {[%emt 0:00:30]} 34. Ke1 {[%emt 0:00:30]} Qc1+ {[%emt 0:00:30]} 35. Ke2 {[%emt 0:00:30]} Qc2+ {[%emt 0:00:30]} 36. Kf1 {[%emt 0:00:30]} Qc1+ {[%emt 0:00:30]} 37. Kf2 {[%emt 0:00:30]} Qf4+ {[%emt 0:00:30]} 38. Ke2 {[%emt 0:00:30]} Qe4+ {[%emt 0:00:30]} 39. Kf2 {[%emt 0:00:30]} Qf4+ {[%emt 0:00:30]} 40. Ke2 {[%emt 0:00:30]} Qe4+ {[%emt 0:00:30]} 41. Kf2 {[%emt 0:00:30]} Qf4+ {[%emt 0:00:30]} 42. Ke2 {[%emt 0:00:30]} Qe4+ {[%emt 0:00:30]} 43. Kd1 {[%emt 0:00:30]} Qb1+ {[%emt 0:00:30]} 44. Ke2 {[%emt 0:00:30]} Qe4+ {[%emt 0:00:30]} 45. Kd2 {[%emt 0:00:30]} Qxg2+ {[%emt 0:00:30]} 46. Kc3 {[%emt 0:00:30]} Qf3+ {[%emt 0:00:30]} 47. Kc4 {[%emt 0:00:30]} Qe4+ {[%emt 0:00:30]} 48. Kc3 {[%emt 0:00:30]} Qe3+ {[%emt 0:00:30]} 49. Kb4 {[%emt 0:00:30]} Qe4+ {[%emt 0:00:30]} 50. Kc3 {[%emt 0:00:30]} Qe3+ {[%emt 0:00:30]} 51. Kc4 {[%emt 0:00:30]} Qe4+ {[%emt 0:00:30]} 52. Kc5 {[%emt 0:00:30]} Qc2+ {[%emt 0:00:30]} 53. Kd4 {[%emt 0:00:30]} Qd2+ {[%emt 0:00:30]} 54. Kc4 {[%emt 0:00:30]} Qc2+ {[%emt 0:00:30]} 55. Kb4 {[%emt 0:00:30]} Qe4+ {[%emt 0:00:30]} 56. Ka5 {[%emt 0:00:30]} Qe1+ {[%emt 0:00:30]} 57. b4 {[%emt 0:00:30]} Qe4 {[%emt 0:00:30]} 58. Qd8+ {[%emt 0:00:30]} Kh7 {[%emt 0:00:30]} 59. Qe7+ {[%emt 0:00:30]} Kg8 {[%emt 0:00:30]} 60. Qe6+ {[%emt 0:00:30]} Kh7 {[%emt 0:00:30]} 61. Qd7+ {[%emt 0:00:30]} Kg8 {[%emt 0:00:30]} 62. e6 {[%emt 0:00:30]} Qf5+ {[%emt 0:00:30]} 63. b5 {[%emt 0:00:30]} a6 {[%emt 0:00:30]} 64. Qe8+ {[%emt 0:00:30]} Kg7 {[%emt 0:00:30]} 65. e7 {[%emt 0:00:30]} Qf7 {[%emt 0:00:30]} 66. Qd7 {[%emt 0:00:30]} b6+ {[%emt 0:00:30]} 67. Kxa6 {[%emt 0:00:30]} 1-0

[Event "Romanian-ch Youth Girls U14 2024"]
[Site "Eforie Nord"]
[Date "2024.04.16"]
[Round "6.1"]
[White "Aldea, Maria-Antonia"]
[Black "Isopescu, Iulia Elena"]
[Result "1/2-1/2"]
[ECO "B15"]
[WhiteElo "1894"]
[BlackElo "1692"]
[Annotator "NA RC"]
[PlyCount "113"]
[EventDate "2024.04.10"]
[EventType "swiss"]
[EventCountry "ROU"]
[SourceTitle "playchess.com"]
[Source "ChessBase"]
[SourceQuality "1"]
[TimeControl "5400+30"]

1. e4 {[%emt 0:00:34]} c6 {[%emt 0:00:25]} 2. d4 {[%emt 0:00:07]} d5 {[%emt 0:00:14]} 3. Nc3 {[%emt 0:00:10]} dxe4 {[%emt 0:00:15]} 4. Nxe4 {[%emt 0:00:08]} Nf6 {[%emt 0:00:14]} 5. Ng3 {[%emt 0:00:21]} e5 {[%emt 0:03:17]} 6. Be3 {[%emt 0:05:33]} Be6 {[%emt 0:11:23]} 7. Nf3 {[%emt 0:05:20]} Nbd7 {[%emt 0:13:28]} 8. h3 {[%emt 0:22:12]} Bd6 {[%emt 0:30:51]} 9. dxe5 {[%emt 0:05:27]} Nxe5 {[%emt 0:00:34]} 10. Nd2 {[%emt 0:55:38]} O-O {[%emt 0:08:53]} 11. Be2 {[%emt 0:00:00]} Nd5 {[%emt 0:05:11]} 12. Ngf1 {[%emt 0:00:00]} Nxe3 {[%emt 0:04:23]} 13. Nxe3 {[%emt 0:00:00]} f5 {[%emt 0:03:37]} 14. Nec4 {[%emt 0:00:00]} Bc7 {[%emt 0:01:13]} 15. Nxe5 {[%emt 0:00:00]} Bxe5 {[%emt 0:00:12]} 16. c3 {[%emt 0:00:00]} Kh8 {[%emt 0:01:44]} 17. Nf3 {[%emt 0:00:00]} Bf6 {[%emt 0:01:04]} 18. Qxd8 {[%emt 0:00:00]} Raxd8 {[%emt 0:00:48]} 19. O-O {[%emt 0:00:00]} Rd7 {[%emt 0:02:21]} 20. Rfd1 {[%emt 0:00:00]} Rfd8 {[%emt 0:00:45]} 21. Rxd7 {[%emt 0:00:00]} Rxd7 {[%emt 0:00:10]} 22. Kf1 {[%emt 0:00:00]} a5 {[%emt 0:01:51]} 23. Ke1 {[%emt 0:00:00]} a4 {[%emt 0:01:06]} 24. a3 {[%emt 0:00:00]} Kg8 {[%emt 0:04:31]} 25. Rd1 {[%emt 0:00:00]} Rxd1+ {[%emt 0:00:27]} 26. Bxd1 {[%emt 0:00:00]} b5 {[%emt 0:00:34]} 27. Kd2 {[%emt 0:00:00]} f4 {[%emt 0:03:05]} 28. Bc2 {[%emt 0:00:00]} Bd5 {[%emt 0:00:23]} 29. Ne1 {[%emt 0:00:17]} g5 {[%emt 0:01:07]} 30. Bd1 {[%emt 0:03:17]} Kf7 {[%emt 0:00:24]} 31. Bf3 {[%emt 0:00:53]} Ke6 {[%emt 0:00:31]} 32. Bxd5+ {[%emt 0:04:21]} Kxd5 {[%emt 0:00:07]} 33. Kd3 {[%emt 0:00:02]} c5 {[%emt 0:00:35]} 34. Nc2 {[%emt 0:01:38]} Be5 {[%emt 0:00:30]} 35. Ne1 {[%emt 0:01:08]} h6 {[%emt 0:00:27]} 36. Nf3 {[%emt 0:00:42]} Bf6 {[%emt 0:00:57]} 37. Nd2 {[%emt 0:00:30]} c4+ {[%emt 0:00:25]} 38. Kc2 {[%emt 0:00:25]} Be5 {[%emt 0:00:25]} 39. Nf3 {[%emt 0:00:31]} Bf6 {[%emt 0:00:09]} 40. Nd2 {[%emt 0:00:29]} Be5 {[%emt 0:00:10]} 41. f3 {[%emt 0:00:39]} Bf6 {[%emt 0:00:39]} 42. Ne4 {[%emt 0:00:16]} Be5 {[%emt 0:00:58]} 43. Kd2 {[%emt 0:00:16]} Bg7 {[%emt 0:00:38]} 44. Ke2 {[%emt 0:00:24]} Be5 {[%emt 0:00:42]} 45. Kf2 {[%emt 0:00:24]} Bg7 {[%emt 0:00:32]} 46. Kg1 {[%emt 0:00:34]} Be5 {[%emt 0:00:24]} 47. Kh2 {[%emt 0:00:26]} Bg7 {[%emt 0:00:26]} 48. Kg1 {[%emt 0:00:40]} Bh8 {[%emt 0:00:39]} 49. Kf2 {[%emt 0:00:41]} Be5 {[%emt 0:00:14]} 50. Ke2 {[%emt 0:00:22]} Bg7 {[%emt 0:00:19]} 51. Kd2 {[%emt 0:00:42]} Be5 {[%emt 0:00:16]} 52. Ke1 {[%emt 0:00:27]} Bg7 {[%emt 0:00:20]} 53. Kf1 {[%emt 0:00:15]} Bh8 {[%emt 0:00:21]} 54. Kg1 {[%emt 0:00:34]} Bg7 {[%emt 0:00:25]} 55. Kh1 {[%emt 0:00:04]} Bh8 {[%emt 0:00:05]} 56. Kh2 {[%emt 0:00:07]} Be5 {[%emt 0:00:43]} 57. Kg1 {[%emt 0:01:26]} 1/2-1/2

[Event "Romanian-ch Youth Girls U14 2024"]
[Site "Eforie Nord"]
[Date "2024.04.16"]
[Round "6.2"]
[White "Moldovan, Maia-Rut"]
[Black "Semenova, Vasylyna"]
[Result "1-0"]
[ECO "D00"]
[WhiteElo "1725"]
[BlackElo "1827"]
[Annotator "NA RC"]
[PlyCount "89"]
[EventDate "2024.04.10"]
[EventType "swiss"]
[EventCountry "ROU"]
[SourceTitle "playchess.com"]
[Source "ChessBase"]
[SourceQuality "1"]
[TimeControl "5400+30"]

1. d4 {[%emt 0:00:02]} d5 {[%emt 0:00:04]} 2. Nc3 {[%emt 0:00:16]} Nf6 {[%emt 0:00:11]} 3. Bf4 {[%emt 0:00:05]} c6 {[%emt 0:00:25]} 4. e3 {[%emt 0:01:05]} Bg4 {[%emt 0:00:18]} 5. f3 {[%emt 0:00:44]} Bh5 {[%emt 0:00:15]} 6. g4 {[%emt 0:00:31]} Bg6 {[%emt 0:00:07]} 7. h4 {[%emt 0:00:13]} h6 {[%emt 0:00:16]} 8. Bd3 {[%emt 0:00:20]} Bxd3 {[%emt 0:00:12]} 9. Qxd3 {[%emt 0:00:09]} e6 {[%emt 0:00:13]} 10. Nge2 {[%emt 0:02:10]} Nbd7 {[%emt 0:00:42]} 11. O-O-O {[%emt 0:08:17]} Qa5 {[%emt 0:00:41]} 12. Ng3 {[%emt 0:07:03]} O-O-O {[%emt 0:03:27]} 13. g5 {[%emt 0:06:45]} Nh7 {[%emt 0:00:11]} 14. e4 {[%emt 0:03:31]} Bb4 {[%emt 0:00:46]} 15. Nge2 {[%emt 0:05:46]} h5 {[%emt 0:00:50]} 16. exd5 {[%emt 0:01:56]} exd5 {[%emt 0:00:44]} 17. g6 {[%emt 0:00:28]} fxg6 {[%emt 0:07:21]} 18. Qxg6 {[%emt 0:00:09]} Nhf6 {[%emt 0:00:10]} 19. Qxg7 {[%emt 0:06:07]} Rdg8 {[%emt 0:01:07]} 20. Qf7 {[%emt 0:01:15]} Rh7 {[%emt 0:01:09]} 21. Qe6 {[%emt 0:00:27]} Re7 {[%emt 0:03:24]} 22. Qf5 {[%emt 0:00:12]} Rge8 {[%emt 0:04:32]} 23. a3 {[%emt 0:04:54]} Bxc3 {[%emt 0:18:07]} 24. Nxc3 {[%emt 0:00:08]} b5 {[%emt 0:01:14]} 25. Be5 {[%emt 0:17:43]} Re6 {[%emt 0:06:04]} 26. Rhg1 {[%emt 0:08:46]} b4 {[%emt 0:04:15]} 27. axb4 {[%emt 0:06:12]} Qa1+ {[%emt 0:00:20]} 28. Kd2 {[%emt 0:07:10]} Qxb2 {[%emt 0:00:12]} 29. Rb1 {[%emt 0:00:12]} Qa3 {[%emt 0:00:25]} 30. Rg6 {[%emt 0:00:34]} Rxe5 {[%emt 0:06:15]} 31. dxe5 {[%emt 0:01:11]} Rxe5 {[%emt 0:00:13]} 32. Qf4 {[%emt 0:02:12]} Nb6 {[%emt 0:02:09]} 33. Rb3 {[%emt 0:07:49]} Qa1 {[%emt 0:01:24]} 34. Rb1 {[%emt 0:00:48]} Qa3 {[%emt 0:11:05]} 35. Rb3 {[%emt 0:00:15]} Qa1 {[%emt 0:16:19]} 36. Rb1 {[%emt 0:00:26]} Qa6 {[%emt 0:00:53]} 37. b5 {[%emt 0:01:33]} Qa3 {[%emt 0:00:53]} 38. Rb4 {[%emt 0:01:03]} Nfd7 {[%emt 0:10:11]} 39. bxc6 {[%emt 0:00:35]} Qxb4 {[%emt 0:01:54]} 40. cxd7+ {[%emt 0:00:17]} Kxd7 {[%emt 0:00:09]} 41. Qxb4 {[%emt 0:00:37]} Nc4+ {[%emt 0:00:06]} 42. Kd3 {[%emt 0:00:37]} Re3+ {[%emt 0:00:18]} 43. Kd4 {[%emt 0:00:09]} Ne5 {[%emt 0:00:43]} 44. Qb7+ {[%emt 0:00:14]} Ke8 {[%emt 0:00:04]} 45. Rg8# {[%emt 0:02:04]} 1-0

[Event "Romanian-ch Youth Girls U14 2024"]
[Site "Eforie Nord"]
[Date "2024.04.17"]
[Round "7.1"]
[White "Aldea, Maria-Antonia"]
[Black "Kiss, Abigel"]
[Result "1-0"]
[ECO "B70"]
[WhiteElo "1894"]
[BlackElo "1622"]
[Annotator "NA RC COMBH"]
[PlyCount "71"]
[EventDate "2024.04.10"]
[EventType "swiss"]
[EventCountry "ROU"]
[SourceTitle "playchess.com"]
[Source "ChessBase"]
[SourceQuality "1"]
[TimeControl "5400+30"]

1. e4 {[%emt 0:00:03]} c5 {[%emt 0:00:03]} 2. Nf3 {[%emt 0:00:09]} Nc6 {[%emt 0:00:03]} 3. d4 {[%emt 0:00:21]} cxd4 {[%emt 0:00:05]} 4. Nxd4 {[%emt 0:00:03]} g6 {[%emt 0:00:13]} 5. Nc3 {[%emt 0:00:17]} d6 {[%emt 0:00:57]} 6. Be3 {[%emt 0:01:29]} Nf6 {[%emt 0:00:20]} 7. h3 {[%emt 0:01:43]} Bg7 {[%emt 0:00:19]} 8. g3 {[%emt 0:00:33]} a6 {[%emt 0:03:20]} 9. Bg2 {[%emt 0:01:08]} O-O {[%emt 0:00:54]} 10. O-O {[%emt 0:03:09]} Bd7 {[%emt 0:04:23]} 11. Nde2 {[%emt 0:02:32]} Rc8 {[%emt 0:02:57]} 12. Nd5 {[%emt 0:02:41]} Be6 {[%emt 0:12:05]} 13. Qd2 {[%emt 0:17:12]} Bxd5 {[%emt 0:04:21]} 14. exd5 {[%emt 0:00:05]} Ne5 {[%emt 0:00:37]} 15. b3 {[%emt 0:01:08]} b5 {[%emt 0:02:07]} 16. Nd4 {[%emt 0:05:02]} Re8 {[%emt 0:05:11]} 17. a4 {[%emt 0:03:51]} bxa4 {[%emt 0:12:37]} 18. Rxa4 {[%emt 0:00:10]} Ra8 {[%emt 0:00:16]} 19. Rfa1 {[%emt 0:02:51]} Qc8 {[%emt 0:01:05]} 20. Qe2 {[%emt 0:03:04]} Qc7 {[%emt 0:11:35]} 21. Rxa6 {[%emt 0:02:14]} Rxa6 {[%emt 0:00:25]} 22. Qxa6 {[%emt 0:02:35]} Rb8 {[%emt 0:00:39]} 23. Qa5 {[%emt 0:05:28]} Qc8 {[%emt 0:00:56]} 24. f4 {[%emt 0:01:30]} Ned7 {[%emt 0:05:25]} 25. Nc6 {[%emt 0:00:16]} Bf8 {[%emt 0:00:55]} 26. Nxb8 {[%emt 0:00:11]} Qxb8 {[%emt 0:00:19]} 27. b4 {[%emt 0:01:12]} h5 {[%emt 0:13:51]} 28. c4 {[%emt 0:04:06]} Kh7 {[%emt 0:01:57]} 29. b5 {[%emt 0:02:42]} Nc5 {[%emt 0:00:53]} 30. Bxc5 {[%emt 0:00:19]} dxc5 {[%emt 0:00:10]} 31. Qa8 {[%emt 0:00:03]} Qxa8 {[%emt 0:01:05]} 32. Rxa8 {[%emt 0:00:03]} Bg7 {[%emt 0:03:24]} 33. b6 {[%emt 0:00:12]} Nd7 {[%emt 0:00:52]} 34. b7 {[%emt 0:00:04]} Bd4+ {[%emt 0:02:25]} 35. Kh1 {[%emt 0:00:14]} Bf6 {[%emt 0:01:15]} 36. Rd8 {[%emt 0:00:24]} 1-0